[Event "Titled Tuesday Blitz January 17 Early 2023"]
[White "Zierk, Steven"]
[Black "Dubov, Daniil"]
[WhiteFideId "2034255"]
[BlackFideId "24126055"]
[WhiteElo "2488"]
[BlackElo "2708"]
[Result "0-1"]
[Round "07"]
[TimeControl "180+2"]
[Date "2023.01.17"]
[WhiteClock "0:00:39"]
[BlackClock "0:00:28"]

1. e4 {[%clk 0:03:00]}  c5 {[%clk 0:02:58]} 2. Nf3 {[%clk 0:03:01]}  e6 {[%clk 0:02:58]} 3. d4 {[%clk 0:03:01]}  cxd4 {[%clk 0:02:59]} 4. Nxd4 {[%clk 0:03:02]}  Nf6 {[%clk 0:02:59]} 5. Nc3 {[%clk 0:03:01]}  Nc6 {[%clk 0:03:00]} 6. Ndb5 {[%clk 0:03:01]}  d6 {[%clk 0:03:00]} 7. Bf4 {[%clk 0:03:01]}  e5 {[%clk 0:03:00]} 8. Bg5 {[%clk 0:03:02]}  a6 {[%clk 0:03:01]} 9. Na3 {[%clk 0:03:02]}  b5 {[%clk 0:03:02]} 10. Nd5 {[%clk 0:03:02]}  Be7 {[%clk 0:03:02]} 11. Bxf6 {[%clk 0:03:03]}  Bxf6 {[%clk 0:03:03]} 12. c3 {[%clk 0:03:03]}  Rb8 {[%clk 0:03:02]} 13. Nc2 {[%clk 0:03:03]}  Bg5 {[%clk 0:03:02]} 14. Be2 {[%clk 0:02:58]}  O-O {[%clk 0:03:01]} 15. O-O {[%clk 0:02:58]}  Kh8 {[%clk 0:02:59]} 16. a4 {[%clk 0:02:38]}  bxa4 {[%clk 0:02:53]} 17. Rxa4 {[%clk 0:02:39]}  Rxb2 {[%clk 0:02:49]} 18. Bxa6 {[%clk 0:02:38]}  Bd7 {[%clk 0:02:40]} 19. Ncb4 {[%clk 0:02:34]}  Rd2 {[%clk 0:02:23]} 20. Qe1 {[%clk 0:02:25]}  Nb8 {[%clk 0:02:04]} 21. Ra3 {[%clk 0:02:08]}  Nxa6 {[%clk 0:02:02]} 22. Nxa6 {[%clk 0:01:41]}  Bb5 {[%clk 0:02:01]} 23. f4 {[%clk 0:01:41]}  Rxd5 {[%clk 0:01:41]} 24. exd5 {[%clk 0:01:22]}  exf4 {[%clk 0:01:35]} 25. Rf3 {[%clk 0:01:15]}  Re8 {[%clk 0:01:29]} 26. Qb1 {[%clk 0:01:07]}  Be2 {[%clk 0:00:32]} 27. Rh3 {[%clk 0:01:06]}  h6 {[%clk 0:00:29]} 28. Nb4 {[%clk 0:00:54]}  Qb6+ {[%clk 0:00:29]} 29. Kh1 {[%clk 0:00:53]}  f3 {[%clk 0:00:29]} 30. gxf3 {[%clk 0:00:39]}  Qf2 {[%clk 0:00:28]} 0-1


[Site "https://www.chess.com"]

[Event "Titled Tuesday Blitz January 17 Early 2023"]
[White "Kamsky, Gata"]
[Black "Martinez Alcantara, Jose Eduardo"]
[WhiteFideId "2000024"]
[BlackFideId "3805662"]
[WhiteElo "2665"]
[BlackElo "2619"]
[Result "1-0"]
[Round "07"]
[TimeControl "180+2"]
[Date "2023.01.17"]
[WhiteClock "0:00:21"]
[BlackClock "0:00:19"]

1. e4 {[%clk 0:03:00]}  e5 {[%clk 0:02:57]} 2. Nf3 {[%clk 0:03:00]}  Nf6 {[%clk 0:02:58]} 3. Nxe5 {[%clk 0:02:59]}  d6 {[%clk 0:02:59]} 4. Nf3 {[%clk 0:02:59]}  Nxe4 {[%clk 0:02:59]} 5. Qe2 {[%clk 0:02:59]}  Qe7 {[%clk 0:02:59]} 6. d3 {[%clk 0:03:00]}  Nf6 {[%clk 0:02:58]} 7. Qxe7+ {[%clk 0:03:00]}  Bxe7 {[%clk 0:02:59]} 8. Nc3 {[%clk 0:02:55]}  Nc6 {[%clk 0:02:59]} 9. h3 {[%clk 0:02:52]}  a6 {[%clk 0:02:58]} 10. Be3 {[%clk 0:02:51]}  Be6 {[%clk 0:02:58]} 11. Be2 {[%clk 0:02:47]}  h6 {[%clk 0:02:57]} 12. O-O {[%clk 0:02:46]}  Nd5 {[%clk 0:02:51]} 13. Nxd5 {[%clk 0:02:45]}  Bxd5 {[%clk 0:02:52]} 14. c3 {[%clk 0:02:39]}  Bf6 {[%clk 0:02:51]} 15. Rfe1 {[%clk 0:02:38]}  O-O-O {[%clk 0:02:49]} 16. Nd2 {[%clk 0:02:37]}  Be6 {[%clk 0:02:44]} 17. d4 {[%clk 0:02:36]}  g6 {[%clk 0:02:27]} 18. Bd3 {[%clk 0:02:29]}  Ne7 {[%clk 0:02:23]} 19. Ne4 {[%clk 0:02:26]}  Bg7 {[%clk 0:02:23]} 20. Bd2 {[%clk 0:02:23]}  Nd5 {[%clk 0:02:23]} 21. Ng3 {[%clk 0:02:19]}  Rde8 {[%clk 0:02:20]} 22. Re2 {[%clk 0:02:12]}  Nb6 {[%clk 0:02:18]} 23. b3 {[%clk 0:02:11]}  Kd7 {[%clk 0:02:11]} 24. Rae1 {[%clk 0:02:10]}  d5 {[%clk 0:02:03]} 25. Bf4 {[%clk 0:02:04]}  Nc8 {[%clk 0:02:03]} 26. Be5 {[%clk 0:02:03]}  Bxe5 {[%clk 0:02:02]} 27. Rxe5 {[%clk 0:02:02]}  Nd6 {[%clk 0:02:03]} 28. a4 {[%clk 0:01:57]}  a5 {[%clk 0:02:00]} 29. h4 {[%clk 0:01:57]}  c6 {[%clk 0:01:47]} 30. f3 {[%clk 0:01:56]}  b6 {[%clk 0:01:42]} 31. Kf2 {[%clk 0:01:55]}  h5 {[%clk 0:01:37]} 32. Ra1 {[%clk 0:01:45]}  f6 {[%clk 0:01:33]} 33. Ree1 {[%clk 0:01:44]}  g5 {[%clk 0:01:32]} 34. Rh1 {[%clk 0:01:43]}  g4 {[%clk 0:01:29]} 35. Bg6 {[%clk 0:01:37]}  Reg8 {[%clk 0:01:28]} 36. Bd3 {[%clk 0:01:31]}  c5 {[%clk 0:01:20]} 37. Rae1 {[%clk 0:01:27]}  c4 {[%clk 0:01:15]} 38. bxc4 {[%clk 0:01:26]}  dxc4 {[%clk 0:01:16]} 39. Bc2 {[%clk 0:01:25]}  Bd5 {[%clk 0:01:06]} 40. Ne2 {[%clk 0:01:19]}  Bf7 {[%clk 0:00:48]} 41. Nf4 {[%clk 0:01:15]}  g3+ {[%clk 0:00:49]} 42. Ke3 {[%clk 0:01:15]}  Kd8 {[%clk 0:00:46]} 43. Kd2 {[%clk 0:01:08]}  Re8 {[%clk 0:00:47]} 44. Rxe8+ {[%clk 0:01:06]}  Bxe8 {[%clk 0:00:48]} 45. Rh3 {[%clk 0:01:04]}  Rg8 {[%clk 0:00:47]} 46. Ne2 {[%clk 0:01:04]}  b5 {[%clk 0:00:44]} 47. axb5 {[%clk 0:01:03]}  Bxb5 {[%clk 0:00:45]} 48. Rxg3 {[%clk 0:01:01]}  Rh8 {[%clk 0:00:46]} 49. Rg7 {[%clk 0:00:59]}  Bd7 {[%clk 0:00:44]} 50. Kc1 {[%clk 0:00:55]}  Re8 {[%clk 0:00:44]} 51. Nf4 {[%clk 0:00:53]}  Re1+ {[%clk 0:00:43]} 52. Kb2 {[%clk 0:00:50]}  a4 {[%clk 0:00:36]} 53. g4 {[%clk 0:00:45]}  hxg4 {[%clk 0:00:35]} 54. fxg4 {[%clk 0:00:45]}  Rh1 {[%clk 0:00:35]} 55. h5 {[%clk 0:00:45]}  Rh2 {[%clk 0:00:36]} 56. Nd5 {[%clk 0:00:35]}  a3+ {[%clk 0:00:35]} 57. Kxa3 {[%clk 0:00:34]}  Be6 {[%clk 0:00:17]} 58. Nf4 {[%clk 0:00:31]}  Bd7 {[%clk 0:00:15]} 59. Ba4 {[%clk 0:00:26]}  Bc8 {[%clk 0:00:12]} 60. Nd5 {[%clk 0:00:24]}  Be6 {[%clk 0:00:11]} 61. Nxf6 {[%clk 0:00:23]}  Rf2 {[%clk 0:00:12]} 62. g5 {[%clk 0:00:23]}  Rf3 {[%clk 0:00:12]} 63. Kb4 {[%clk 0:00:23]}  Rh3 {[%clk 0:00:13]} 64. h6 {[%clk 0:00:23]}  Nf5 {[%clk 0:00:13]} 65. Ra7 {[%clk 0:00:22]}  Ne3 {[%clk 0:00:13]} 66. h7 {[%clk 0:00:21]}  Bc8 {[%clk 0:00:13]} 67. g6 {[%clk 0:00:21]}  Nf5 {[%clk 0:00:13]} 68. g7 {[%clk 0:00:21]}  Nxg7 {[%clk 0:00:14]} 69. Rxg7 {[%clk 0:00:21]}  Be6 {[%clk 0:00:15]} 70. Rg8+ {[%clk 0:00:21]}  Ke7 {[%clk 0:00:16]} 71. h8=Q {[%clk 0:00:21]}  Rf3 {[%clk 0:00:16]} 72. Qg7+ {[%clk 0:00:21]}  Bf7 {[%clk 0:00:17]} 73. Rf8 {[%clk 0:00:19]}  Kd6 {[%clk 0:00:18]} 74. Rxf7 {[%clk 0:00:20]}  Rf5 {[%clk 0:00:18]} 75. Ne4+ {[%clk 0:00:20]}  Kd5 {[%clk 0:00:18]} 76. Rxf5+ {[%clk 0:00:20]}  Ke6 {[%clk 0:00:19]} 77. Qe5# {[%clk 0:00:21]} 1-0


[Site "https://www.chess.com"]

[Event "Titled Tuesday Blitz January 17 Early 2023"]
[White "Kovalenko, Igor"]
[Black "Deac, Bogdan-Daniel"]
[WhiteFideId "14117908"]
[BlackFideId "1226380"]
[WhiteElo "2674"]
[BlackElo "2700"]
[Result "1-0"]
[Round "07"]
[TimeControl "180+2"]
[Date "2023.01.17"]
[WhiteClock "0:00:04"]
[BlackClock "0:00:02"]

1. d4 {[%clk 0:03:00]}  Nf6 {[%clk 0:02:59]} 2. Nf3 {[%clk 0:03:01]}  d5 {[%clk 0:02:59]} 3. e3 {[%clk 0:03:01]}  Bf5 {[%clk 0:02:57]} 4. Nbd2 {[%clk 0:02:58]}  e6 {[%clk 0:02:56]} 5. Be2 {[%clk 0:02:58]}  c5 {[%clk 0:02:55]} 6. Nh4 {[%clk 0:02:58]}  Be4 {[%clk 0:02:52]} 7. c3 {[%clk 0:02:55]}  Nc6 {[%clk 0:02:51]} 8. O-O {[%clk 0:02:55]}  Qc7 {[%clk 0:02:47]} 9. a3 {[%clk 0:02:50]}  Bd6 {[%clk 0:02:37]} 10. g3 {[%clk 0:02:47]}  Rd8 {[%clk 0:02:26]} 11. b4 {[%clk 0:02:38]}  cxd4 {[%clk 0:02:12]} 12. cxd4 {[%clk 0:02:38]}  g5 {[%clk 0:02:12]} 13. Nhf3 {[%clk 0:02:37]}  g4 {[%clk 0:01:56]} 14. Nh4 {[%clk 0:02:37]}  h5 {[%clk 0:01:25]} 15. Bb2 {[%clk 0:02:36]}  Qe7 {[%clk 0:01:22]} 16. Rc1 {[%clk 0:02:34]}  O-O {[%clk 0:01:18]} 17. Nxe4 {[%clk 0:01:27]}  Nxe4 {[%clk 0:00:53]} 18. Bd3 {[%clk 0:01:21]}  Qg5 {[%clk 0:00:36]} 19. Qe1 {[%clk 0:01:00]}  f5 {[%clk 0:00:32]} 20. Ng2 {[%clk 0:00:54]}  Ne7 {[%clk 0:00:32]} 21. Nf4 {[%clk 0:00:48]}  Rf6 {[%clk 0:00:23]} 22. Rc2 {[%clk 0:00:44]}  h4 {[%clk 0:00:23]} 23. f3 {[%clk 0:00:30]}  gxf3 {[%clk 0:00:21]} 24. Rxf3 {[%clk 0:00:31]}  Rh6 {[%clk 0:00:20]} 25. Rg2 {[%clk 0:00:29]}  h3 {[%clk 0:00:20]} 26. Rc2 {[%clk 0:00:28]}  Rf8 {[%clk 0:00:19]} 27. Kh1 {[%clk 0:00:21]}  Qg4 {[%clk 0:00:18]} 28. Rf1 {[%clk 0:00:21]}  Bxf4 {[%clk 0:00:13]} 29. exf4 {[%clk 0:00:20]}  Rf7 {[%clk 0:00:09]} 30. b5 {[%clk 0:00:20]}  Qg7 {[%clk 0:00:06]} 31. a4 {[%clk 0:00:20]}  b6 {[%clk 0:00:06]} 32. Qe3 {[%clk 0:00:20]}  Ng6 {[%clk 0:00:06]} 33. Rfc1 {[%clk 0:00:19]}  Nf8 {[%clk 0:00:05]} 34. Rc8 {[%clk 0:00:19]}  Rg6 {[%clk 0:00:05]} 35. Ba3 {[%clk 0:00:19]}  Kh7 {[%clk 0:00:04]} 36. Rg1 {[%clk 0:00:15]}  Nd7 {[%clk 0:00:04]} 37. Bf1 {[%clk 0:00:15]}  Rh6 {[%clk 0:00:03]} 38. Be2 {[%clk 0:00:15]}  Ndf6 {[%clk 0:00:04]} 39. Rc6 {[%clk 0:00:13]}  Ng4 {[%clk 0:00:04]} 40. Bxg4 {[%clk 0:00:13]}  Qxg4 {[%clk 0:00:05]} 41. Rgc1 {[%clk 0:00:12]}  Rg6 {[%clk 0:00:05]} 42. Rc8 {[%clk 0:00:11]}  Rg8 {[%clk 0:00:05]} 43. R8c6 {[%clk 0:00:11]}  Rg6 {[%clk 0:00:04]} 44. Bb4 {[%clk 0:00:11]}  Rgg7 {[%clk 0:00:04]} 45. Be1 {[%clk 0:00:10]}  Qg6 {[%clk 0:00:04]} 46. Kg1 {[%clk 0:00:10]}  Rb7 {[%clk 0:00:04]} 47. Kf1 {[%clk 0:00:10]}  Qg4 {[%clk 0:00:04]} 48. Qe2 {[%clk 0:00:10]}  Qg6 {[%clk 0:00:03]} 49. Qf3 {[%clk 0:00:10]}  Rgd7 {[%clk 0:00:03]} 50. Ke2 {[%clk 0:00:10]}  a6 {[%clk 0:00:03]} 51. bxa6 {[%clk 0:00:10]}  Ra7 {[%clk 0:00:04]} 52. Qd3 {[%clk 0:00:10]}  Qh5+ {[%clk 0:00:03]} 53. Ke3 {[%clk 0:00:10]}  Qg6 {[%clk 0:00:03]} 54. Rxb6 {[%clk 0:00:09]}  Nf6 {[%clk 0:00:03]} 55. Rcb1 {[%clk 0:00:08]}  Ng4+ {[%clk 0:00:03]} 56. Kd2 {[%clk 0:00:09]}  Nxh2 {[%clk 0:00:04]} 57. Rb7 {[%clk 0:00:10]}  Qf7 {[%clk 0:00:03]} 58. Rxd7 {[%clk 0:00:09]}  Qxd7 {[%clk 0:00:03]} 59. Qb5 {[%clk 0:00:09]}  Qg7 {[%clk 0:00:02]} 60. Qb7 {[%clk 0:00:04]} 1-0


[Site "https://www.chess.com"]

[Event "Titled Tuesday Blitz January 17 Early 2023"]
[White "Babazada, Khazar"]
[Black "Eljanov, Pavel"]
[WhiteFideId "13413554"]
[BlackFideId "14102951"]
[WhiteElo "2474"]
[BlackElo "2705"]
[Result "1-0"]
[Round "07"]
[TimeControl "180+2"]
[Date "2023.01.17"]
[WhiteClock "0:00:02"]
[BlackClock "0:00:07"]

1. e4 {[%clk 0:03:00]}  c6 {[%clk 0:03:00]} 2. d4 {[%clk 0:02:58]}  d5 {[%clk 0:03:01]} 3. Nc3 {[%clk 0:02:57]}  dxe4 {[%clk 0:03:00]} 4. Nxe4 {[%clk 0:02:58]}  Bf5 {[%clk 0:03:00]} 5. Ng3 {[%clk 0:02:58]}  Bg6 {[%clk 0:03:00]} 6. Nf3 {[%clk 0:02:58]}  Nf6 {[%clk 0:02:58]} 7. h4 {[%clk 0:02:58]}  Nh5 {[%clk 0:02:57]} 8. Nxh5 {[%clk 0:02:55]}  Bxh5 {[%clk 0:02:57]} 9. Be2 {[%clk 0:02:55]}  Nd7 {[%clk 0:02:55]} 10. c3 {[%clk 0:02:55]}  e6 {[%clk 0:02:55]} 11. Ng5 {[%clk 0:02:52]}  Bxe2 {[%clk 0:02:50]} 12. Qxe2 {[%clk 0:02:53]}  h6 {[%clk 0:02:49]} 13. Ne4 {[%clk 0:02:48]}  Nf6 {[%clk 0:02:37]} 14. Bf4 {[%clk 0:02:41]}  Qd5 {[%clk 0:02:32]} 15. Nxf6+ {[%clk 0:02:40]}  gxf6 {[%clk 0:02:32]} 16. f3 {[%clk 0:02:39]}  h5 {[%clk 0:02:26]} 17. Kf2 {[%clk 0:02:29]}  Rg8 {[%clk 0:02:18]} 18. Rhe1 {[%clk 0:02:23]}  Be7 {[%clk 0:02:14]} 19. Rad1 {[%clk 0:02:21]}  Qxa2 {[%clk 0:01:55]} 20. d5 {[%clk 0:02:22]}  e5 {[%clk 0:01:41]} 21. Bxe5 {[%clk 0:02:07]}  fxe5 {[%clk 0:01:41]} 22. Qxe5 {[%clk 0:02:08]}  Qxb2+ {[%clk 0:01:19]} 23. Re2 {[%clk 0:02:08]}  Qa3 {[%clk 0:01:19]} 24. d6 {[%clk 0:02:07]}  O-O-O {[%clk 0:01:19]} 25. Qf5+ {[%clk 0:01:29]}  Kb8 {[%clk 0:01:13]} 26. dxe7 {[%clk 0:01:25]}  Rxd1 {[%clk 0:01:09]} 27. e8=Q+ {[%clk 0:01:25]}  Rxe8 {[%clk 0:01:09]} 28. Rxe8+ {[%clk 0:01:26]}  Kc7 {[%clk 0:01:10]} 29. Qxf7+ {[%clk 0:01:22]}  Kb6 {[%clk 0:01:09]} 30. Re7 {[%clk 0:01:22]}  Qc5+ {[%clk 0:00:58]} 31. Ke2 {[%clk 0:01:22]}  Rg1 {[%clk 0:00:41]} 32. Qb3+ {[%clk 0:00:40]}  Qb5+ {[%clk 0:00:41]} 33. Qxb5+ {[%clk 0:00:40]}  cxb5 {[%clk 0:00:42]} 34. Kf2 {[%clk 0:00:38]}  Rh1 {[%clk 0:00:39]} 35. Rh7 {[%clk 0:00:33]}  a5 {[%clk 0:00:37]} 36. Rh6+ {[%clk 0:00:31]}  Kc5 {[%clk 0:00:38]} 37. Rxh5+ {[%clk 0:00:31]}  Kc4 {[%clk 0:00:38]} 38. g4 {[%clk 0:00:30]}  a4 {[%clk 0:00:39]} 39. g5 {[%clk 0:00:18]}  a3 {[%clk 0:00:38]} 40. g6 {[%clk 0:00:18]}  Rh2+ {[%clk 0:00:19]} 41. Kg3 {[%clk 0:00:16]}  Rh1 {[%clk 0:00:18]} 42. Kg2 {[%clk 0:00:14]}  a2 {[%clk 0:00:17]} 43. g7 {[%clk 0:00:15]}  Rg1+ {[%clk 0:00:17]} 44. Kxg1 {[%clk 0:00:12]}  a1=Q+ {[%clk 0:00:17]} 45. Kh2 {[%clk 0:00:12]}  Qa2+ {[%clk 0:00:13]} 46. Kg3 {[%clk 0:00:10]}  Qb1 {[%clk 0:00:07]} 47. Rg5 {[%clk 0:00:09]}  Qe1+ {[%clk 0:00:07]} 48. Kh3 {[%clk 0:00:04]}  Qe6+ {[%clk 0:00:07]} 49. Rg4+ {[%clk 0:00:02]} 1-0


[Site "https://www.chess.com"]

[Event "Titled Tuesday Blitz January 17 Early 2023"]
[White "Bharath Subramaniyam H"]
[Black "Korobov, Anton"]
[WhiteFideId "46634827"]
[BlackFideId "14105730"]
[WhiteElo "2517"]
[BlackElo "2664"]
[Result "0-1"]
[Round "07"]
[TimeControl "180+2"]
[Date "2023.01.17"]
[WhiteClock "0:00:43"]
[BlackClock "0:00:12"]

1. e4 {[%clk 0:02:51]}  c5 {[%clk 0:02:59]} 2. Nf3 {[%clk 0:02:51]}  d6 {[%clk 0:02:59]} 3. Bb5+ {[%clk 0:02:51]}  Nd7 {[%clk 0:02:59]} 4. d4 {[%clk 0:02:50]}  cxd4 {[%clk 0:02:59]} 5. Nxd4 {[%clk 0:02:51]}  a6 {[%clk 0:02:57]} 6. Bd3 {[%clk 0:02:51]}  g6 {[%clk 0:02:55]} 7. O-O {[%clk 0:02:50]}  Bg7 {[%clk 0:02:55]} 8. Be3 {[%clk 0:02:51]}  Ngf6 {[%clk 0:02:41]} 9. c4 {[%clk 0:02:51]}  Ne5 {[%clk 0:02:37]} 10. f3 {[%clk 0:02:45]}  O-O {[%clk 0:02:27]} 11. Nc3 {[%clk 0:02:41]}  e6 {[%clk 0:02:14]} 12. Qd2 {[%clk 0:02:37]}  b6 {[%clk 0:02:11]} 13. Be2 {[%clk 0:02:33]}  Re8 {[%clk 0:02:10]} 14. Rfd1 {[%clk 0:02:32]}  Bb7 {[%clk 0:02:05]} 15. Nb3 {[%clk 0:02:30]}  Bf8 {[%clk 0:02:02]} 16. a4 {[%clk 0:02:28]}  Rc8 {[%clk 0:02:02]} 17. a5 {[%clk 0:02:28]}  Nxc4 {[%clk 0:01:57]} 18. Bxc4 {[%clk 0:02:28]}  Rxc4 {[%clk 0:01:58]} 19. axb6 {[%clk 0:02:29]}  d5 {[%clk 0:01:32]} 20. Na5 {[%clk 0:02:25]}  Qc8 {[%clk 0:01:28]} 21. Nxc4 {[%clk 0:02:25]}  Qxc4 {[%clk 0:01:24]} 22. Qd4 {[%clk 0:02:24]}  Qxd4 {[%clk 0:01:22]} 23. Bxd4 {[%clk 0:02:09]}  e5 {[%clk 0:01:22]} 24. Bf2 {[%clk 0:02:08]}  d4 {[%clk 0:01:21]} 25. Na4 {[%clk 0:02:09]}  Bd6 {[%clk 0:00:57]} 26. Rdc1 {[%clk 0:02:04]}  Nd7 {[%clk 0:00:54]} 27. Be1 {[%clk 0:02:02]}  f5 {[%clk 0:00:50]} 28. exf5 {[%clk 0:01:57]}  gxf5 {[%clk 0:00:51]} 29. Bf2 {[%clk 0:01:43]}  Kf7 {[%clk 0:00:42]} 30. f4 {[%clk 0:01:43]}  d3 {[%clk 0:00:36]} 31. fxe5 {[%clk 0:01:43]}  Nxe5 {[%clk 0:00:36]} 32. Nc5 {[%clk 0:01:41]}  Bd5 {[%clk 0:00:22]} 33. Nxa6 {[%clk 0:01:21]}  Ng4 {[%clk 0:00:20]} 34. Nc7 {[%clk 0:01:08]}  Bxh2+ {[%clk 0:00:17]} 35. Kf1 {[%clk 0:01:08]}  Re2 {[%clk 0:00:16]} 36. Nxd5 {[%clk 0:00:52]}  Rxf2+ {[%clk 0:00:17]} 37. Ke1 {[%clk 0:00:52]}  d2+ {[%clk 0:00:18]} 38. Kd1 {[%clk 0:00:53]}  dxc1=Q+ {[%clk 0:00:18]} 39. Rxc1 {[%clk 0:00:52]}  Rxb2 {[%clk 0:00:19]} 40. Rc6 {[%clk 0:00:45]}  Nf2+ {[%clk 0:00:18]} 41. Kc1 {[%clk 0:00:45]}  Nd3+ {[%clk 0:00:19]} 42. Kd1 {[%clk 0:00:46]}  Bf4 {[%clk 0:00:17]} 43. Rf6+ {[%clk 0:00:44]}  Kg7 {[%clk 0:00:17]} 44. Nxf4 {[%clk 0:00:42]}  Kxf6 {[%clk 0:00:17]} 45. Nxd3 {[%clk 0:00:42]}  Rxb6 {[%clk 0:00:17]} 46. Kd2 {[%clk 0:00:42]}  Rb3 {[%clk 0:00:17]} 47. Ke3 {[%clk 0:00:43]}  Kg5 {[%clk 0:00:17]} 48. Ke2 {[%clk 0:00:43]}  Kg4 {[%clk 0:00:12]} 0-1


[Site "https://www.chess.com"]

[Event "Titled Tuesday Blitz January 17 Early 2023"]
[White "Paichadze, Luka"]
[Black "Jobava, Baadur"]
[WhiteFideId "13602934"]
[BlackFideId "13601520"]
[WhiteElo "2515"]
[BlackElo "2578"]
[Result "0-1"]
[Round "07"]
[TimeControl "180+2"]
[Date "2023.01.17"]
[WhiteClock "0:00:06"]
[BlackClock "0:00:03"]

1. e4 {[%clk 0:02:59]}  d6 {[%clk 0:02:55]} 2. d4 {[%clk 0:02:58]}  Nf6 {[%clk 0:02:54]} 3. Nc3 {[%clk 0:02:58]}  e5 {[%clk 0:02:54]} 4. Nf3 {[%clk 0:02:58]}  Nbd7 {[%clk 0:02:54]} 5. g4 {[%clk 0:02:58]}  g6 {[%clk 0:02:54]} 6. g5 {[%clk 0:02:56]}  Nh5 {[%clk 0:02:54]} 7. Be3 {[%clk 0:02:56]}  Bg7 {[%clk 0:02:54]} 8. Qd2 {[%clk 0:02:56]}  O-O {[%clk 0:02:54]} 9. O-O-O {[%clk 0:02:56]}  c6 {[%clk 0:02:52]} 10. dxe5 {[%clk 0:02:55]}  dxe5 {[%clk 0:02:49]} 11. Bh3 {[%clk 0:02:52]}  Qe7 {[%clk 0:02:40]} 12. Qd6 {[%clk 0:02:27]}  Qxd6 {[%clk 0:02:38]} 13. Rxd6 {[%clk 0:02:28]}  Nb6 {[%clk 0:02:36]} 14. Bxc8 {[%clk 0:02:26]}  Raxc8 {[%clk 0:02:25]} 15. b3 {[%clk 0:02:11]}  Rfd8 {[%clk 0:02:06]} 16. Rhd1 {[%clk 0:02:04]}  Rxd6 {[%clk 0:02:06]} 17. Rxd6 {[%clk 0:02:05]}  Nf4 {[%clk 0:01:32]} 18. a4 {[%clk 0:01:48]}  Bf8 {[%clk 0:01:27]} 19. Rd1 {[%clk 0:01:47]}  Ng2 {[%clk 0:01:16]} 20. Bxb6 {[%clk 0:01:00]}  axb6 {[%clk 0:01:16]} 21. Rd7 {[%clk 0:01:00]}  Rb8 {[%clk 0:01:05]} 22. Nd1 {[%clk 0:00:50]}  Bg7 {[%clk 0:00:58]} 23. c4 {[%clk 0:00:42]}  Nf4 {[%clk 0:00:58]} 24. Kd2 {[%clk 0:00:31]}  Kf8 {[%clk 0:00:57]} 25. Ne3 {[%clk 0:00:27]}  Ke8 {[%clk 0:00:57]} 26. Rd6 {[%clk 0:00:10]}  Ke7 {[%clk 0:00:50]} 27. Rd3 {[%clk 0:00:10]}  Nxd3 {[%clk 0:00:49]} 28. Kxd3 {[%clk 0:00:10]}  Ke6 {[%clk 0:00:47]} 29. h4 {[%clk 0:00:08]}  h5 {[%clk 0:00:44]} 30. Nc2 {[%clk 0:00:06]}  Bf8 {[%clk 0:00:42]} 31. Ke2 {[%clk 0:00:05]}  Rd8 {[%clk 0:00:41]} 32. Nce1 {[%clk 0:00:05]}  Bg7 {[%clk 0:00:37]} 33. Nd3 {[%clk 0:00:05]}  f6 {[%clk 0:00:37]} 34. c5 {[%clk 0:00:02]}  f5 {[%clk 0:00:36]} 35. Nd2 {[%clk 0:00:01]}  b5 {[%clk 0:00:30]} 36. axb5 {[%clk 0:00:01]}  cxb5 {[%clk 0:00:31]} 37. f3 {[%clk 0:00:01]}  Bf8 {[%clk 0:00:31]} 38. b4 {[%clk 0:00:02]}  Rd4 {[%clk 0:00:18]} 39. Nb3 {[%clk 0:00:01]}  Rc4 {[%clk 0:00:18]} 40. Na5 {[%clk 0:00:02]}  Rc2+ {[%clk 0:00:18]} 41. Kd1 {[%clk 0:00:02]}  Rh2 {[%clk 0:00:11]} 42. Nxb7 {[%clk 0:00:03]}  Rxh4 {[%clk 0:00:11]} 43. c6 {[%clk 0:00:03]}  fxe4 {[%clk 0:00:08]} 44. fxe4 {[%clk 0:00:03]}  Rh2 {[%clk 0:00:05]} 45. c7 {[%clk 0:00:02]}  Kd7 {[%clk 0:00:05]} 46. Nxe5+ {[%clk 0:00:02]}  Kxc7 {[%clk 0:00:05]} 47. Nc5 {[%clk 0:00:02]}  Bxc5 {[%clk 0:00:05]} 48. bxc5 {[%clk 0:00:03]}  Rg2 {[%clk 0:00:03]} 49. Nf3 {[%clk 0:00:03]}  Rg3 {[%clk 0:00:03]} 50. Ke2 {[%clk 0:00:03]}  b4 {[%clk 0:00:03]} 51. Nd4 {[%clk 0:00:02]}  Kd7 {[%clk 0:00:02]} 52. e5 {[%clk 0:00:02]}  Rxg5 {[%clk 0:00:01]} 53. c6+ {[%clk 0:00:03]}  Ke7 {[%clk 0:00:01]} 54. Nf3 {[%clk 0:00:03]}  Rf5 {[%clk 0:00:02]} 55. Ke3 {[%clk 0:00:03]}  b3 {[%clk 0:00:02]} 56. Nd4 {[%clk 0:00:03]}  Rxe5+ {[%clk 0:00:02]} 57. Kf4 {[%clk 0:00:04]}  Rc5 {[%clk 0:00:02]} 58. c7 {[%clk 0:00:04]}  Rxc7 {[%clk 0:00:03]} 59. Kg5 {[%clk 0:00:05]}  b2 {[%clk 0:00:03]} 60. Nb3 {[%clk 0:00:06]}  b1=Q {[%clk 0:00:03]} 0-1


[Site "https://www.chess.com"]

[Event "Titled Tuesday Blitz January 17 Early 2023"]
[White "Pakleza, Zbigniew"]
[Black "Dominguez Perez, Leinier"]
[WhiteFideId "1119290"]
[BlackFideId "3503240"]
[WhiteElo "2494"]
[BlackElo "2739"]
[Result "1-0"]
[Round "07"]
[TimeControl "180+2"]
[Date "2023.01.17"]
[WhiteClock "0:00:03"]
[BlackClock "0:00:01"]

1. d4 {[%clk 0:03:00]}  d5 {[%clk 0:02:59]} 2. Bf4 {[%clk 0:03:00]}  Nf6 {[%clk 0:02:58]} 3. e3 {[%clk 0:03:00]}  e6 {[%clk 0:02:55]} 4. Nd2 {[%clk 0:03:00]}  c5 {[%clk 0:02:55]} 5. c3 {[%clk 0:02:59]}  Bd6 {[%clk 0:02:55]} 6. Bg3 {[%clk 0:02:59]}  O-O {[%clk 0:02:54]} 7. Ngf3 {[%clk 0:02:59]}  Qc7 {[%clk 0:02:54]} 8. Be2 {[%clk 0:02:58]}  Nbd7 {[%clk 0:02:53]} 9. c4 {[%clk 0:02:58]}  Bxg3 {[%clk 0:02:48]} 10. hxg3 {[%clk 0:02:58]}  b6 {[%clk 0:02:49]} 11. Rc1 {[%clk 0:02:57]}  Bb7 {[%clk 0:02:48]} 12. cxd5 {[%clk 0:02:52]}  exd5 {[%clk 0:02:47]} 13. dxc5 {[%clk 0:02:26]}  bxc5 {[%clk 0:02:46]} 14. O-O {[%clk 0:02:26]}  Qb6 {[%clk 0:02:39]} 15. Qb3 {[%clk 0:02:22]}  Rfd8 {[%clk 0:02:26]} 16. Rfd1 {[%clk 0:02:19]}  Rac8 {[%clk 0:02:24]} 17. Qa3 {[%clk 0:02:06]}  Re8 {[%clk 0:02:14]} 18. Bf1 {[%clk 0:01:58]}  Ng4 {[%clk 0:01:56]} 19. Nh2 {[%clk 0:01:22]}  Nxh2 {[%clk 0:01:34]} 20. Kxh2 {[%clk 0:01:23]}  Nf6 {[%clk 0:01:34]} 21. Kg1 {[%clk 0:01:15]}  h5 {[%clk 0:01:28]} 22. Nf3 {[%clk 0:01:06]}  Ng4 {[%clk 0:01:09]} 23. Rc3 {[%clk 0:00:55]}  Rc7 {[%clk 0:00:46]} 24. Rdc1 {[%clk 0:00:50]}  Rec8 {[%clk 0:00:45]} 25. Rb3 {[%clk 0:00:40]}  Qf6 {[%clk 0:00:44]} 26. Qa5 {[%clk 0:00:38]}  g6 {[%clk 0:00:19]} 27. Qxa7 {[%clk 0:00:22]}  Ra8 {[%clk 0:00:09]} 28. Qb6 {[%clk 0:00:18]}  Qxb6 {[%clk 0:00:09]} 29. Rxb6 {[%clk 0:00:19]}  Rxa2 {[%clk 0:00:09]} 30. Nd4 {[%clk 0:00:13]}  c4 {[%clk 0:00:07]} 31. e4 {[%clk 0:00:09]}  Kg7 {[%clk 0:00:03]} 32. f3 {[%clk 0:00:08]}  Ne5 {[%clk 0:00:02]} 33. exd5 {[%clk 0:00:09]}  Bxd5 {[%clk 0:00:02]} 34. Rb5 {[%clk 0:00:09]}  Rd7 {[%clk 0:00:02]} 35. Rd1 {[%clk 0:00:06]}  Nd3 {[%clk 0:00:01]} 36. Nc2 {[%clk 0:00:06]}  Be6 {[%clk 0:00:01]} 37. Ne3 {[%clk 0:00:04]}  Rxb2 {[%clk 0:00:01]} 38. Ra5 {[%clk 0:00:03]} 1-0


[Site "https://www.chess.com"]